bitfinex/quotes_SOLUSD_20250125
["timestamp","ask_amount","ask_price","bid_price","bid_amount"]
[1737832940482,7.32202162,258.92,258.88,0.0001]
[1737832942677,0.03,258.92,258.89,1.0]
[1737832942887,0.03,258.92,258.91,2.0]
[1737832949782,0.03,258.92,258.91,25.776884]
[1737832952096,0.03,259.0,258.95,20.0]
[1737832952274,0.03,259.0,258.99,2.0]
[1737832952975,0.03,259.0,258.99,27.348284]
[1737832953496,0.03,259.0,258.99,33.610484]
[1737832953669,9.6758,259.18,259.08,1.0]
[1737832953869,88.19202162,259.17,259.08,1.0]
[1737832954177,88.19202162,259.17,259.04,20.0]
[1737832954178,88.19202162,259.17,259.1,1.0]
[1737832954375,7.29202162,259.15,259.08,1.0]
[1737832955005,11.15072162,259.15,259.08,1.0]
[1737832955374,11.15072162,259.15,259.07,1.0]
[1737832955697,7.29202162,259.13,259.06,1.0]
[1737832956005,3.8592,259.12,259.06,1.0]
[1737832956884,7.29202162,259.13,259.06,1.0]
[1737832958971,7.29202162,259.15,259.08,1.0]
[1737832959895,7.29202162,259.15,259.1,1.0]
[1737832961703,88.19202162,259.17,259.1,1.0]
[1737832962014,0.03,259.15,259.11,1.0]
[1737832963384,0.03,259.15,259.12,1.0]
[1737832964410,0.03,259.15,259.14,1.0]
[1737832965584,0.03,259.15,259.14,2.0]
[1737832967483,0.03,259.15,259.14,25.776884]
[1737832968613,0.03,259.41,259.17,23.0]
[1737832968814,0.03,259.41,259.16,1.0]
[1737832968815,7.29202162,259.31,259.23,1.0]
[1737832968988,7.29202162,259.29,259.23,1.0]
[1737832969194,7.29202162,259.27,259.22,1.0]
[1737832969589,7.29202162,259.27,259.25,1.0]
[1737832969794,1.0,259.22,259.08,1.0]
[1737832970008,7.29202162,259.14,259.05,1.0]
[1737832970231,7.29202162,259.12,259.07,1.0]
[1737832970523,7.29202162,259.14,259.09,1.0]
[1737832971616,7.29202162,259.14,259.07,1.0]
[1737832971822,7.29202162,259.14,259.09,1.0]
[1737832972913,11.15092162,259.14,259.07,1.0]
[1737832973411,11.15092162,259.14,259.05,1.0]
[1737832974039,7.29202162,259.12,259.05,1.0]
[1737832975317,7.29202162,259.1,259.05,0.063]
[1737832975498,7.29202162,259.08,259.05,0.063]
[1737832976716,3.8599,259.07,259.05,0.063]
[1737832977021,7.29202162,259.06,259.05,0.063]
[1737832977811,7.29202162,259.06,259.05,0.0001]
[1737832978018,7.29202162,259.06,258.94,1.0]
[1737832978221,7.29202162,258.97,258.94,1.0]
[1737832979117,3.8616,258.96,258.94,1.0]
[1737832981324,3.8616,258.96,258.91,0.063]
[1737832981729,7.29202162,258.93,258.91,0.063]
[1737832982241,7.29202162,258.95,258.92,1.0]
[1737832982439,3.8616,258.96,258.92,1.0]
[1737832985264,3.8616,258.96,258.94,1.0]
[1737832985606,3.8616,258.96,258.91,0.063]
[1737832985807,7.29202162,258.95,258.91,0.063]
[1737832986034,7.29202162,258.93,258.91,0.063]
[1737832987134,3.8621,258.92,258.91,0.063]
[1737832987346,3.8621,258.92,258.91,1.063]
[1737832988437,3.8618,258.94,258.91,1.063]
[1737832989245,7.29202162,258.99,258.93,1.0]
[1737832989541,3.8611,258.99,258.93,1.0]
[1737832990242,11.15312162,258.99,258.93,1.0]
[1737832991840,11.15312162,258.99,258.91,1.063]
[1737832992247,11.15312162,258.99,258.94,1.0]
[1737832992824,72.25419882,259.01,258.92,1.0]
[1737832993027,7.29202162,258.98,258.92,1.0]
[1737832993549,7.29202162,258.98,258.91,0.063]
[1737832993851,7.29202162,258.95,258.91,0.063]
[1737832995526,3.8618,258.94,258.91,0.063]
[1737832998457,7.29202162,258.95,258.93,1.0]
[1737832998755,11.15372162,258.95,258.91,1.063]
[1737833000759,7.29202162,258.93,258.91,0.063]
[1737833001427,72.25419882,258.92,258.91,0.063]
[1737833002655,76.11629882,258.92,258.91,0.063]
[1737833006863,3.8621,258.92,258.91,0.063]
[1737833009067,3.862,258.94,258.91,0.063]
[1737833010673,11.15402162,258.94,258.91,0.063]
[1737833010967,11.15412162,258.92,258.91,0.063]
[1737833011873,35.26388329,258.92,258.91,0.063]
[1737833014348,15.26388329,258.92,258.91,0.063]
[1737833014669,3.8621,258.92,258.91,0.063]
[1737833020267,2.82,258.98,258.93,1.0]
[1737833020268,15.26308329,258.98,258.93,1.0]
[1737833021750,11.40178329,258.98,258.95,1.0]
[1737833021955,0.03,258.99,258.98,1.0]
[1737833025461,0.03,258.99,258.98,24.776884]
[1737833025662,0.03,258.99,258.98,25.16295679]
[1737833035691,0.03,258.99,258.98,25.22595679]
[1737833039368,0.03,258.99,258.98,29.08725679]
[1737833039970,7.28359723,259.15,259.04,1.0]
[1737833040175,0.03,259.17,259.04,25.1627819]
[1737833041264,0.03,259.17,259.04,29.0231819]
[1737833041484,7.28359723,259.16,259.04,29.0231819]
[1737833042088,7.28359723,259.14,259.04,1.0]
[1737833042394,7.28359723,259.14,259.04,21.0]
[1737833043401,3.859,259.13,259.04,44.776884]
[1737833043571,3.8589,259.15,259.04,44.776884]
[1737833043766,15.26374812,259.17,259.04,44.776884]
[1737833043962,3.8885,259.17,259.04,44.776884]
[1737833044193,0.03,259.17,259.04,44.776884]
[1737833048398,0.03,259.17,259.16,1.0]
[1737833048582,0.03,259.17,259.16,24.776884]
[1737833048779,9.641,259.31,259.16,24.776884]
[1737833048780,11.37524812,259.34,259.31,1.0]
[1737833048983,11.37524812,259.36,259.31,1.0]
[1737833050004,11.37524812,259.34,259.31,1.0]
[1737833051497,11.37524812,259.36,259.35,1.0]
[1737833051802,6.5203,259.38,259.35,1.0]
[1737833052168,6.5203,259.38,259.28,4.2422977]
[1737833052169,6.5203,259.38,259.37,1.0]
[1737833055706,11.37524812,259.4,259.39,1.0]
[1737833056184,11.37524812,259.4,259.37,1.0]
[1737833056603,15.23034812,259.4,259.37,1.0]
[1737833056796,11.37524812,259.38,259.34,1.0]
[1737833057098,11.37524812,259.36,259.34,1.0]
[1737833057295,11.37524812,259.36,259.32,1.0]
[1737833058001,3.8557,259.35,259.32,1.0]
[1737833059606,3.8555,259.37,259.34,1.0]
[1737833059800,3.8555,259.37,259.36,1.0]
[1737833060386,3.6472,259.37,259.36,1.0]
[1737833061410,3.6472,259.37,259.28,1.0]
[1737833061583,11.37524812,259.31,259.24,1.0]
[1737833061909,11.37524812,259.29,259.22,1.0]
[1737833062211,11.37524812,259.29,259.24,1.0]
[1737833063315,3.8568,259.28,259.24,1.0]
[1737833065407,11.37524812,259.27,259.22,1.0]
[1737833066497,3.8571,259.26,259.22,0.7]
[1737833066899,11.37524812,259.3,259.27,0.7]
[1737833068206,3.8564,259.31,259.29,0.7]
[1737833068593,11.37524812,259.3,259.24,0.7]
[1737833070324,3.8566,259.29,259.24,0.7]
[1737833072326,3.8561,259.33,259.31,0.7]
[1737833073132,3.8561,259.33,259.29,0.7]
[1737833074931,3.8561,259.33,259.31,0.7]
[1737833075101,17.89554812,259.36,259.31,0.7]
[1737833075427,3.8557,259.35,259.31,0.7]
[1737833075626,3.8557,259.35,259.34,0.7]
[1737833075808,3.8557,259.35,259.32,0.7]
[1737833076404,3.8557,259.35,259.34,0.7]
[1737833076639,76.10969882,259.37,259.34,0.7]
[1737833077336,1.5512,259.4,259.35,0.7]
[1737833077337,3.8553,259.39,259.35,0.7]
[1737833078330,11.37524812,259.38,259.31,0.7]
[1737833078732,3.8553,259.39,259.31,0.7]
[1737833078733,11.37524812,259.36,259.31,0.7]
[1737833079306,3.8557,259.35,259.31,0.7]
[1737833079532,3.8557,259.35,259.34,0.7]
[1737833081524,3.8554,259.37,259.34,0.7]
[1737833082817,11.37524812,259.36,259.32,0.7]
[1737833083335,3.8554,259.37,259.34,0.7]
[1737833084433,3.8554,259.37,259.32,0.7]
[1737833085437,3.8554,259.37,259.34,0.7]
[1737833085733,0.03,259.36,259.34,0.7]
[1737833086235,0.03,259.36,259.32,0.7]
[1737833087517,7.26826646,259.35,259.32,0.7]
[1737833087726,0.03,259.36,259.32,0.7]
[1737833088847,0.03,259.36,259.34,0.7]
[1737833091820,0.03,259.36,259.32,0.7]
[1737833092735,0.03,259.36,259.34,0.7]
[1737833098648,3.8856,259.36,259.34,0.7]
[1737833099340,3.8856,259.36,259.32,0.7]
[1737833101530,7.26826646,259.35,259.32,0.7]
[1737833102653,0.03,259.36,259.34,0.7]
[1737833106336,0.03,259.36,259.34,4.5559]
[1737833109944,0.03,259.36,259.35,23.776884]
[1737833110460,0.03,259.36,259.35,24.16237082]
[1737833110626,0.03,259.36,259.34,4.5559]
[1737833110828,0.03,259.36,259.34,0.7]
[1737833111729,0.03,259.36,259.28,20.0]
[1737833111730,7.26826646,259.35,259.3,0.7]
[1737833111934,7.26826646,259.35,259.34,0.7]
[1737833112128,11.12396646,259.35,259.3,0.7]
[1737833112334,7.26826646,259.33,259.3,0.7]
[1737833113250,11.12436646,259.33,259.3,0.7]
[1737833116442,3.8561,259.33,259.3,0.7]
[1737833116640,0.03,259.36,259.35,0.7]
[1737833117047,3.8557,259.35,259.3,0.7]
[1737833117343,7.26826646,259.32,259.26,0.7]
[1737833117651,7.26826646,259.31,259.28,0.7]
[1737833117953,11.12476646,259.31,259.28,0.7]
[1737833119140,3.8565,259.31,259.28,0.7]
[1737833121966,3.8565,259.31,259.3,0.7]
[1737833122370,3.8562,259.32,259.3,0.7]
[1737833122576,15.21856916,259.32,259.3,0.7]
[1737833126071,15.21856916,259.32,259.26,0.7]
[1737833126274,11.36236916,259.3,259.26,0.7]
[1737833127378,16.82596916,259.32,259.28,0.7]
[1737833131263,16.82596916,259.32,259.26,0.7]
[1737833132680,3.8562,259.32,259.3,0.7]
[1737833132861,0.03,259.36,259.35,0.7]
[1737833137890,3.03,259.36,259.35,0.7]
[1737833145685,3.8557,259.35,259.31,0.7]
[1737833145990,7.26801406,259.32,259.31,0.7]
[1737833146785,7.26801406,259.32,259.29,0.7]
[1737833146976,7.26801406,259.34,259.31,0.7]
[1737833147493,0.03,259.32,259.31,0.7]
[1737833150497,7.29801406,259.32,259.29,0.7]
[1737833151289,7.29801406,259.32,259.31,0.7]
[1737833151493,4.3,259.31,259.22,0.44874623]
[1737833151989,4.3,259.31,259.22,24.30644623]
[1737833152870,8.1564,259.31,259.22,24.30644623]
[1737833153401,8.1564,259.31,259.22,20.063]
[1737833153697,7.26801406,259.3,259.22,20.063]
[1737833155495,3.8566,259.29,259.22,20.063]
[1737833155793,3.8566,259.29,259.22,0.063]
[1737833159396,4.937,259.22,259.21,20.0]
[1737833161396,4.937,259.22,259.2,3.858]
[1737833161799,4.937,259.22,259.19,23.8581]
[1737833162497,4.937,259.22,259.2,24.16263505]
[1737833163094,4.3,259.31,259.24,23.776884]
[1737833163312,4.3,259.31,259.28,23.776884]
[1737833163600,4.3,259.31,259.3,3.8565]
[1737833164378,4.3,259.31,259.29,0.38557309]
[1737833164579,4.3,259.31,259.28,28.01918581]
[1737833165603,4.3,259.31,259.3,20.0]
[1737833165776,4.3,259.31,259.3,44.16244174]
[1737833167299,4.3,259.31,259.3,48.01894174]
[1737833170304,0.03,259.32,259.31,23.776884]
[1737833170808,0.03,259.32,259.31,45.276884]
[1737833171877,0.03,259.4,259.34,43.776884]
[1737833172075,0.03,259.4,259.35,0.38544523]
[1737833172601,0.03,259.4,259.35,25.16232923]
[1737833173001,0.03,259.4,259.39,21.0]
[1737833173190,0.03,259.4,259.39,46.16223276]
[1737833173603,0.03,259.4,259.39,44.16223276]
[1737833173988,0.03,259.4,259.39,48.01733276]
[1737833174787,0.03,259.4,259.39,49.01733276]
[1737833176310,0.03,259.4,259.39,50.01733276]
[1737833176603,0.03,259.57,259.43,1.0]
[1737833176807,7.26801406,259.56,259.44,0.38530474]
[1737833177115,3.8531,259.53,259.43,20.0]
[1737833178105,7.26801406,259.52,259.39,3.8551]
[1737833178495,7.26801406,259.5,259.39,3.8551]
[1737833178808,7.26801406,259.5,259.42,20.0]
[1737833178985,3.8537,259.49,259.42,20.0]
[1737833179188,3.8537,259.49,259.39,3.8551]
[1737833179385,3.8537,259.49,259.4,23.776884]
[1737833180421,3.8537,259.49,259.37,3.8554]
[1737833180612,7.26801406,259.48,259.37,3.8554]
[1737833180796,7.26801406,259.48,259.38,23.776884]
[1737833181185,7.26801406,259.48,259.4,20.0]
[1737833181407,3.854,259.47,259.38,23.776884]
[1737833182091,3.854,259.47,259.37,3.8554]
[1737833182298,3.854,259.47,259.35,3.8557]
[1737833182712,7.26801406,259.46,259.39,20.0]
[1737833183586,3.8543,259.45,259.36,23.776884]
[1737833183785,3.8543,259.45,259.35,3.8557]
[1737833184007,7.26801406,259.44,259.33,3.8559]
[1737833184311,3.8543,259.45,259.33,3.8559]
[1737833187519,3.8543,259.45,259.33,23.8559]
[1737833188009,3.8543,259.45,259.34,23.776884]
[1737833188215,3.8543,259.45,259.35,3.8557]
[1737833188924,7.26801406,259.44,259.35,3.8557]
[1737833189104,7.7008,259.43,259.28,1.0]
[1737833189423,7.7008,259.43,259.29,0.38554844]
[1737833189591,7.7008,259.43,259.31,20.0]
[1737833189920,7.7008,259.43,259.32,43.776884]
[1737833190106,11.5555,259.43,259.32,43.776884]
[1737833190302,11.5555,259.43,259.33,3.856]
[1737833194424,7.7008,259.43,259.32,43.776884]
[1737833194619,7.7008,259.43,259.34,3.8558]
[1737833196027,7.7008,259.43,259.35,24.16239379]
[1737833196206,6.1771,259.49,259.37,23.776884]
[1737833196415,6.1771,259.49,259.38,0.38541756]
[1737833196810,1.5237,259.51,259.41,23.776884]
[1737833197119,6.1771,259.56,259.45,23.776884]
[1737833198100,6.1771,259.56,259.46,3.8541]
[1737833198300,10.0298,259.56,259.46,3.8541]
[1737833199534,6.1771,259.56,259.47,23.776884]
[1737833199895,10.0298,259.56,259.46,3.8541]
[1737833201626,10.0298,259.56,259.47,20.0]
[1737833202229,10.0298,259.56,259.44,0.38528831]
[1737833202230,3.8527,259.56,259.44,0.38528831]
[1737833202414,3.8527,259.56,259.46,23.776884]
[1737833202596,3.8527,259.56,259.49,20.0]
[1737833202800,1.5537,259.57,259.49,20.0]
[1737833202801,1.5537,259.57,259.5,23.776884]
[1737833204120,1.5537,259.57,259.51,3.8534]
[1737833206231,0.03,259.57,259.53,20.0]
[1737833206533,0.03,259.57,259.56,43.776884]
[1737833207331,0.03,259.57,259.52,3.8531]
[1737833207528,0.03,259.57,259.48,21.88521818]
[1737833207718,0.03,259.57,259.46,3.8541]
[1737833208130,0.03,259.57,259.5,23.776884]
[1737833208438,0.03,259.57,259.52,23.776884]
[1737833208611,0.03,259.57,259.51,20.0]
[1737833210525,0.03,259.57,259.51,23.776884]
[1737833211436,0.03,259.57,259.47,3.854]
[1737833211818,0.03,259.57,259.49,27.630584]
[1737833215334,0.03,259.57,259.52,20.0]
[1737833216332,8.1095,259.56,259.46,3.854]
[1737833217132,8.1095,259.56,259.5,20.0]
[1737833217428,0.03,259.57,259.51,23.776884]
[1737833218922,0.03,259.57,259.51,27.630184]
[1737833220342,0.03,259.57,259.54,20.0]
[1737833220537,0.03,259.57,259.55,0.38520009]
[1737833221736,0.03,259.57,259.55,24.16208409]
[1737833222442,0.03,259.57,259.56,47.629484]
[1737833222621,0.03,259.57,259.56,48.01458055]
[1737833222825,6.5089,259.68,259.6,20.0]
[1737833223141,0.235,259.72,259.64,20.0]
[1737833223318,0.235,259.72,259.65,24.161914]
[1737833224025,0.235,259.72,259.65,0.38503]
[1737833224229,0.235,259.72,259.61,20.0]
[1737833224416,0.235,259.72,259.62,0.3850774]
[1737833224620,4.0853,259.72,259.66,20.0]
[1737833224821,0.235,259.72,259.67,24.16194153]
[1737833225845,0.235,259.72,259.71,23.776884]
[1737833226038,0.235,259.72,259.71,24.16181476]
[1737833226240,0.235,259.72,259.71,20.38493076]
[1737833226632,0.235,259.72,259.71,44.16181476]
[1737833227547,1.5518,259.79,259.72,12.765]
[1737833227749,12.66901406,259.79,259.72,12.765]
[1737833227952,7.26801406,259.77,259.72,12.765]
[1737833228751,3.8497,259.76,259.72,12.765]
[1737833230152,3.8497,259.76,259.65,0.38501265]
[1737833230153,7.26801406,259.77,259.62,0.38499053]
[1737833230749,7.26801406,259.77,259.67,20.0]
[1737833232052,3.8497,259.76,259.67,20.0]
[1737833232977,3.8497,259.76,259.68,23.776884]
[1737833233150,16.89111406,259.79,259.68,23.776884]
[1737833233357,20.74031406,259.79,259.68,23.776884]
[1737833234053,3.8787,259.83,259.75,20.0]
[1737833234354,0.03,259.83,259.76,24.16176268]
[1737833235354,0.03,259.83,259.77,3.8495]
[1737833236734,0.03,259.83,259.76,24.16176268]
[1737833236930,0.03,259.83,259.79,23.776884]
[1737833237131,0.03,259.83,259.79,20.0]
[1737833237336,7.29801406,259.83,259.71,0.38488188]
[1737833237738,7.26801406,259.81,259.69,3.8507]
[1737833237947,7.26801406,259.79,259.67,3.8509]
[1737833238342,7.26801406,259.79,259.68,23.776884]
[1737833238552,7.26801406,259.79,259.67,3.8509]
[1737833238736,7.26801406,259.79,259.67,23.8509]
[1737833239053,7.26801406,259.75,259.61,0.38499182]
[1737833239831,7.26801406,259.75,259.65,20.0]
[1737833240057,11.9062602,259.78,259.65,20.0]
[1737833240263,11.11751406,259.77,259.65,20.0]
[1737833240572,11.11751406,259.77,259.66,24.16192197]
[1737833241040,11.11751406,259.77,259.66,23.776884]
[1737833241564,7.26801406,259.75,259.66,23.776884]
[1737833241738,11.3240806,259.75,259.66,23.776884]
[1737833242270,15.1739806,259.75,259.66,23.776884]
[1737833243469,15.1739806,259.75,259.61,20.0]
[1737833243661,15.1739806,259.75,259.62,23.776884]
[1737833244246,3.8499,259.75,259.63,0.38506314]
[1737833244770,2.28470652,259.74,259.63,0.38506314]
[1737833245267,3.8501,259.73,259.63,4.23656314]
[1737833246871,11.3240806,259.75,259.64,23.776884]
[1737833247060,0.03,259.83,259.68,23.776884]
[1737833247261,0.03,259.83,259.72,23.776884]
[1737833247565,0.03,259.83,259.73,0.38489616]
[1737833247953,2.286652,259.82,259.73,0.38489616]
[1737833248460,3.8489,259.81,259.73,0.38489616]
[1737833249273,3.8489,259.81,259.7,4.23532504]
[1737833249565,11.3240806,259.76,259.63,4.29950101]
[1737833249866,11.3240806,259.74,259.63,0.063]
[1737833250270,11.3240806,259.74,259.63,23.839884]
[1737833250473,11.3240806,259.74,259.63,27.691384]
[1737833250971,3.8501,259.73,259.63,27.691384]
[1737833251154,3.8501,259.73,259.63,3.9145]
[1737833251768,3.8498,259.75,259.63,4.29954604]
[1737833252268,15.1731806,259.8,259.63,4.29954604]
[1737833253559,11.3240806,259.76,259.63,4.29954604]
[1737833253868,3.8498,259.76,259.63,4.29954604]
[1737833255973,2.28986191,259.75,259.63,4.29954604]
[1737833257878,6.13986191,259.74,259.63,4.29954604]
[1737833258971,17.46394251,259.74,259.63,4.29954604]
[1737833259170,17.46394251,259.74,259.63,0.44804604]
[1737833259387,11.3240806,259.72,259.63,0.063]
[1737833261067,2.28986191,259.71,259.63,0.063]
[1737833261270,3.8507,259.69,259.63,0.063]
[1737833261476,11.3240806,259.68,259.63,0.063]
[1737833262553,3.8507,259.69,259.63,0.063]
[1737833263763,2.28986191,259.67,259.63,0.063]
[1737833264966,2.28986191,259.66,259.63,0.063]
[1737833267184,3.8507,259.7,259.63,0.063]
[1737833267697,3.8507,259.7,259.63,0.44806161]
[1737833268877,2.29854712,259.69,259.63,0.44806161]
[1737833269087,11.3240806,259.67,259.63,0.063]
[1737833269384,11.3240806,259.65,259.63,0.063]
[1737833270459,3.8514,259.64,259.63,0.063]
[1737833270875,6.14994712,259.64,259.63,0.063]
[1737833271757,12.26274712,259.64,259.63,0.0001]
[1737833272563,13.86754712,259.64,259.63,0.0001]
[1737833275762,14.86754712,259.64,259.63,0.0001]
[1737833276979,13.86754712,259.64,259.63,0.0001]
[1737833283277,12.26274712,259.64,259.63,0.0001]
[1737833285776,19.52079528,259.64,259.63,0.0001]
[1737833290610,6.14994712,259.64,259.63,0.0001]
[1737833290814,13.40799528,259.64,259.63,0.0001]
[1737833291713,17.48409498,259.64,259.63,0.0001]
[1737833294014,6.14994712,259.64,259.63,0.0001]
[1737833294312,2.29854712,259.64,259.63,0.0001]
[1737833296603,13.63269498,259.64,259.63,0.0001]
[1737833299123,2.29854712,259.64,259.63,0.0001]
[1737833302195,13.63269498,259.64,259.63,0.0001]
[1737833309925,14.63269498,259.64,259.63,0.0001]
[1737833310129,20.0,259.6,259.55,0.063]
[1737833310307,11.33414786,259.56,259.55,0.063]
[1737833311398,15.18674786,259.56,259.55,0.063]
[1737833311808,11.1127637,259.56,259.55,0.063]
[1737833312627,13.41131082,259.56,259.55,0.063]
[1737833314228,9.55871082,259.56,259.55,0.063]
[1737833314429,2.29854712,259.56,259.55,0.063]
[1737833315116,2.29854712,259.56,259.55,5.4443]
[1737833316125,2.29854712,259.56,259.55,1.5915]
[1737833318406,3.8518,259.62,259.55,1.5915]
[1737833318934,3.8514,259.64,259.55,1.5915]
[1737833320433,19.25229002,259.77,259.6,22.0]
[1737833320733,19.25229002,259.77,259.61,1.92097778]
[1737833320734,7.91772886,259.77,259.61,1.92097778]
[1737833321027,7.91772886,259.77,259.62,1.0]
[1737833321234,7.91772886,259.77,259.63,0.38499504]
[1737833321428,2.88987638,259.77,259.63,0.38499504]
[1737833321824,2.88987638,259.77,259.68,23.776884]
[1737833322024,2.88987638,259.77,259.7,23.776884]
[1737833322206,2.88987638,259.77,259.71,0.38491345]
[1737833322405,16.36241364,259.88,259.71,0.38491345]
[1737833322607,15.18276116,259.86,259.71,0.38491345]
[1737833322828,11.33456116,259.86,259.71,0.38491345]
[1737833323058,3.8484,259.85,259.71,0.38491345]
[1737833323233,11.33456116,259.86,259.71,0.38491345]
[1737833323234,11.33456116,259.88,259.74,23.776884]
[1737833323446,3.8481,259.87,259.75,0.38488098]
[1737833323617,3.8485,259.84,259.73,20.0]
[1737833323934,3.8485,259.84,259.7,44.16178654]
[1737833324107,3.8485,259.84,259.7,48.01228654]
[1737833327249,11.33456116,259.82,259.7,24.16178654]
[1737833327431,11.33456116,259.8,259.69,1.536]
[1737833329338,11.33456116,259.82,259.69,1.536]
[1737833329741,11.33456116,259.8,259.69,1.536]
[1737833331540,11.33456116,259.75,259.64,1.6626291]
[1737833331836,11.33456116,259.75,259.64,21.6626291]
[1737833332014,11.33456116,259.75,259.64,1.6626291]
[1737833333607,3.85,259.74,259.64,1.6626291]
[1737833333917,11.33456116,259.71,259.64,0.0615291]
[1737833335346,11.33456116,259.69,259.64,0.0615291]
[1737833335641,35.18586116,259.65,259.55,0.063]
[1737833335842,11.33456116,259.59,259.55,0.063]
[1737833336045,11.33456116,259.57,259.55,0.063]
[1737833337945,15.18716116,259.57,259.55,0.063]
[1737833338714,21.72886116,259.57,259.55,0.063]
[1737833340021,20.0,259.54,259.39,3.9181]
[1737833340240,11.33456116,259.53,259.39,3.9181]
[1737833341031,11.33456116,259.62,259.47,20.0]
[1737833341231,6.5417,259.64,259.51,20.0]
[1737833341431,6.5417,259.64,259.52,0.38522947]
[1737833341644,41.6,259.67,259.52,24.16211347]
[1737833341849,3.8512,259.66,259.52,24.16211347]
[1737833342163,3.8512,259.66,259.54,23.776884]
[1737833342654,3.8512,259.66,259.53,3.8531]
[1737833342862,11.33456116,259.65,259.52,20.0]
[1737833344040,3.8514,259.64,259.52,20.0]
[1737833346247,11.33456116,259.63,259.51,1.7011]
[1737833346441,11.33456116,259.61,259.51,1.7011]
[1737833347047,11.33456116,259.63,259.51,1.7011]
[1737833347847,3.8517,259.62,259.51,1.7011]
[1737833348560,11.33456116,259.52,259.51,0.063]
[1737833348928,11.33456116,259.54,259.51,0.063]
[1737833349962,31.33456116,259.52,259.51,0.063]
[1737833350259,31.33456116,259.52,259.42,1.6148]
[1737833350566,11.33456116,259.5,259.39,0.063]
[1737833350768,31.33456116,259.52,259.39,0.063]
[1737833351433,11.33456116,259.48,259.39,0.063]
[1737833351837,13.4858,259.53,259.39,0.063]
[1737833351838,11.33456116,259.46,259.39,0.063]
[1737833352438,31.33456116,259.44,259.39,0.063]
[1737833352638,11.33456116,259.42,259.39,0.063]
[1737833353958,3.8549,259.41,259.39,0.063]
[1737833354849,11.33456116,259.4,259.39,0.063]
[1737833356143,11.33456116,259.4,259.39,0.0001]
[1737833356339,20.0,259.38,259.37,0.0001]
[1737833356560,31.33456116,259.38,259.37,0.0001]
[1737833359668,31.33456116,259.38,259.21,3.8577]
[1737833359669,3.8554,259.37,259.22,20.0]
[1737833359870,11.33456116,259.35,259.22,20.0]
[1737833360735,3.8559,259.34,259.22,20.0]
[1737833361882,11.33456116,259.33,259.19,3.921]
[1737833362047,11.33456116,259.33,259.21,20.0]
[1737833362870,11.33456116,259.31,259.21,20.0]
[1737833363076,3.8565,259.3,259.21,20.0]
[1737833363455,3.8565,259.3,259.19,0.063]
[1737833364463,11.33456116,259.29,259.19,0.063]
[1737833365173,11.33456116,259.25,259.19,0.063]
[1737833365381,11.33456116,259.23,259.19,0.063]
[1737833365952,11.33456116,259.21,259.19,0.063]
[1737833366446,14.12596157,259.38,259.2,1.89200246]
[1737833366654,21.97056116,259.45,259.23,20.0]
[1737833366878,10.2775,259.46,259.29,6.3665]
[1737833367045,10.2775,259.46,259.3,24.16241872]
[1737833367249,20.0,259.43,259.31,3.8563]
[1737833368096,20.0,259.43,259.29,28.25207348]
[1737833368451,20.0,259.43,259.29,27.8665]
[1737833368452,20.0,259.42,259.29,27.8665]
[1737833369375,3.8549,259.41,259.29,27.8665]
[1737833370379,20.0,259.42,259.29,27.9295]
[1737833371562,3.8549,259.41,259.29,27.9295]
[1737833372258,3.8549,259.41,259.29,6.4295]